bitfinex/quotes_BTCUSD_20260101
["timestamp","ask_amount","ask_price","bid_price","bid_amount"]
[1767262550819,0.50037258,87866.0,87856.0,0.01138226]
[1767262551260,0.50037258,87866.0,87857.0,0.01138213]
[1767262552152,0.50037258,87866.0,87856.0,0.01138226]
[1767262552836,0.50029379,87866.0,87856.0,0.01138226]
[1767262553259,0.50029379,87866.0,87857.0,0.01138213]
[1767262553843,0.50029379,87866.0,87856.0,0.01138226]
[1767262554274,0.50029379,87866.0,87857.0,0.01138213]
[1767262555732,0.50029379,87866.0,87856.0,0.06829307]
[1767262556095,0.50029379,87866.0,87859.0,0.01138187]
[1767262556315,0.50029379,87866.0,87858.0,0.011382]
[1767262556543,0.50029379,87866.0,87859.0,0.01138187]
[1767262556751,0.50029379,87866.0,87858.0,0.011382]
[1767262557065,0.50029379,87866.0,87859.0,0.01138187]
[1767262557878,0.50029379,87866.0,87856.0,0.06829307]
[1767262558192,0.50029379,87866.0,87858.0,0.011382]
[1767262558413,0.50029379,87866.0,87857.0,0.01138213]
[1767262559281,0.50029379,87866.0,87858.0,0.011382]
[1767262559485,0.50029379,87866.0,87857.0,0.01138213]
[1767262559930,0.50029379,87866.0,87858.0,0.011382]
[1767262560348,0.00377608,87858.0,87854.0,0.06132307]
[1767262560501,0.00377608,87858.0,87855.0,0.05691146]
[1767262561920,0.00377608,87858.0,87856.0,0.01138226]
[1767262566267,0.00378998,87857.0,87856.0,0.01138226]
[1767262567556,0.50029379,87866.0,87858.0,0.011382]
[1767262568476,0.50029379,87866.0,87857.0,0.01138213]
[1767262568665,0.50029379,87866.0,87858.0,0.011382]
[1767262569103,0.50029379,87866.0,87857.0,0.01138213]
[1767262569442,0.50029379,87866.0,87858.0,0.011382]
[1767262572114,0.50029379,87866.0,87857.0,0.01138213]
[1767262572276,0.50029379,87866.0,87858.0,0.011382]
[1767262572911,0.50029379,87866.0,87857.0,0.01138213]
[1767262573276,0.50029379,87866.0,87858.0,0.011382]
[1767262575812,0.50029379,87866.0,87857.0,0.01138213]
[1767262575991,0.50029379,87866.0,87858.0,0.011382]
[1767262577684,0.50029379,87866.0,87857.0,0.01138213]
[1767262577863,0.50029379,87866.0,87858.0,0.011382]
[1767262578676,0.50029379,87866.0,87857.0,0.01138213]
[1767262579653,0.50029379,87866.0,87858.0,0.011382]
[1767262580479,0.50029379,87866.0,87857.0,0.01138213]
[1767262580811,0.50029379,87866.0,87858.0,0.011382]
[1767262581797,0.50029379,87866.0,87857.0,0.01138213]
[1767262581973,0.50029379,87866.0,87858.0,0.011382]
[1767262583677,0.50029379,87866.0,87857.0,0.01138213]
[1767262585541,0.50029379,87866.0,87858.0,0.011382]
[1767262585992,0.50029379,87866.0,87857.0,0.01138213]
[1767262586880,0.50029379,87866.0,87856.0,0.01138226]
[1767262587202,0.50029379,87866.0,87857.0,0.01138213]
[1767262587441,0.50029379,87866.0,87856.0,0.01138226]
[1767262588887,0.50029379,87866.0,87857.0,0.01138213]
[1767262590033,0.50029379,87866.0,87856.0,0.01138226]
[1767262590415,0.50029379,87866.0,87857.0,0.01138213]
[1767262590632,0.50029379,87866.0,87858.0,0.011382]
[1767262590835,0.50029379,87866.0,87857.0,0.01138213]
[1767262591302,0.50029379,87866.0,87856.0,0.01138226]
[1767262591508,0.50029379,87866.0,87859.0,0.01138187]
[1767262591710,0.50029379,87866.0,87857.0,0.01138213]
[1767262592196,0.50029379,87866.0,87858.0,0.011382]
[1767262593050,0.50029379,87866.0,87856.0,0.01138226]
[1767262593599,0.50029379,87866.0,87857.0,0.01138213]
[1767262594039,0.50029379,87866.0,87856.0,0.01138226]
[1767262594394,0.50029379,87866.0,87857.0,0.01138213]
[1767262594912,0.50029379,87866.0,87856.0,0.01138226]
[1767262598389,0.50029379,87866.0,87857.0,0.01138213]
[1767262600041,0.50029379,87866.0,87856.0,0.01138226]
[1767262601048,0.50029379,87866.0,87855.0,0.06829386]
[1767262601247,0.50029379,87866.0,87856.0,0.01138226]
[1767262601395,0.50029379,87866.0,87855.0,0.01138239]
[1767262603709,0.50029379,87866.0,87854.0,0.01138252]
[1767262604554,0.50029379,87866.0,87855.0,0.01138239]
[1767262604754,0.50029379,87866.0,87854.0,0.01138252]
[1767262605003,0.50029379,87866.0,87855.0,0.01138239]
[1767262605305,0.50029379,87866.0,87854.0,0.01138252]
[1767262606354,0.50029379,87866.0,87855.0,0.01138239]
[1767262606589,0.50029379,87866.0,87854.0,0.01138252]
[1767262606773,0.50029379,87866.0,87855.0,0.01138239]
[1767262609934,0.50029379,87866.0,87853.0,0.06829541]
[1767262609935,0.000549,87855.0,87853.0,0.01138265]
[1767262610159,0.000549,87855.0,87852.0,0.05691382]
[1767262610160,0.04632345,87865.0,87855.0,0.01138239]
[1767262610433,0.04632345,87865.0,87854.0,0.01138252]
[1767262610655,0.04632345,87865.0,87855.0,0.01138239]
[1767262615831,0.04632345,87865.0,87856.0,0.01138226]
[1767262616233,0.04632345,87865.0,87857.0,0.01138213]
[1767262617133,0.04632345,87865.0,87856.0,0.01138226]
[1767262618178,0.04632345,87865.0,87857.0,0.01138213]
[1767262618346,0.04632345,87865.0,87856.0,0.01138226]
[1767262619872,0.04632345,87865.0,87857.0,0.01138213]
[1767262620076,0.04632345,87865.0,87856.0,0.01138226]
[1767262620274,0.04632345,87865.0,87857.0,0.01138213]
[1767262620979,0.04632345,87865.0,87855.0,0.01138239]
[1767262621142,0.04632345,87865.0,87856.0,0.01138226]
[1767262623222,0.04632345,87865.0,87855.0,0.01138239]
[1767262623577,0.04632345,87865.0,87856.0,0.01138226]
[1767262624708,0.04632345,87865.0,87855.0,0.01138239]
[1767262624933,0.04632345,87865.0,87856.0,0.01138226]
[1767262626217,0.04632345,87865.0,87855.0,0.01138239]
[1767262626795,0.04632345,87865.0,87856.0,0.01138226]
[1767262627445,0.04632345,87865.0,87857.0,0.01138213]
[1767262627630,0.04632345,87865.0,87856.0,0.01138226]
[1767262628773,0.04632345,87865.0,87851.0,0.05691436]
[1767262628918,0.000549,87856.0,87853.0,0.01138265]
[1767262629116,0.04553977,87860.0,87853.0,0.01138265]
[1767262630849,0.04553977,87860.0,87854.0,0.01138252]
[1767262631348,0.04553977,87860.0,87853.0,0.01138265]
[1767262631553,0.04553977,87860.0,87854.0,0.01138252]
[1767262631816,0.04553977,87860.0,87853.0,0.01138265]
[1767262632150,0.04553977,87860.0,87854.0,0.01138252]
[1767262633520,0.04553977,87860.0,87853.0,0.01138265]
[1767262635308,0.000549,87853.0,87852.0,0.01138278]
[1767262635915,0.04553977,87860.0,87854.0,0.01138252]
[1767262636121,0.04553977,87860.0,87853.0,0.01138265]
[1767262636295,0.04553977,87860.0,87854.0,0.01138252]
[1767262637380,0.04553977,87860.0,87853.0,0.01138265]
[1767262637734,0.000549,87853.0,87852.0,0.01138278]
[1767262637905,0.04553977,87860.0,87852.0,0.01138278]
[1767262638127,0.04553977,87860.0,87853.0,0.01138265]
[1767262639867,0.04553977,87860.0,87854.0,0.01138252]
[1767262641348,0.50029379,87866.0,87854.0,0.01138252]
[1767262641349,0.5455642,87866.0,87854.0,0.01138252]
[1767262641599,0.04527041,87865.0,87854.0,0.01138252]
[1767262641973,0.04527041,87865.0,87853.0,0.01138265]
[1767262643797,0.04527041,87865.0,87854.0,0.01138252]
[1767262644107,0.04527041,87865.0,87853.0,0.01138265]
[1767262649851,0.04527041,87865.0,87852.0,0.01138278]
[1767262650005,0.04527041,87865.0,87853.0,0.01138265]
[1767262650650,0.04527041,87865.0,87852.0,0.01138278]
[1767262650944,0.04527041,87865.0,87853.0,0.01138265]
[1767262659934,0.04527041,87865.0,87852.0,0.01138278]
[1767262660134,0.04527041,87865.0,87853.0,0.01138265]
[1767262662896,0.04527041,87865.0,87852.0,0.01138278]
[1767262663254,0.04527041,87865.0,87853.0,0.01138265]
[1767262663454,0.04527041,87865.0,87852.0,0.01138278]
[1767262663649,0.04527041,87865.0,87853.0,0.01138265]
[1767262667136,0.04527041,87865.0,87852.0,0.01138278]
[1767262667296,0.04527041,87865.0,87853.0,0.01138265]
[1767262669856,0.04527041,87865.0,87852.0,0.01138278]
[1767262672177,0.04527041,87865.0,87851.0,0.06829728]
[1767262672178,0.04527041,87865.0,87851.0,0.0113829]
[1767262672366,0.04527041,87865.0,87852.0,0.01138278]
[1767262672594,0.04527041,87865.0,87851.0,0.0113829]
[1767262673067,0.04527041,87865.0,87852.0,0.01138278]
[1767262674608,0.04527041,87865.0,87851.0,0.0113829]
[1767262674808,0.04527041,87865.0,87852.0,0.01138278]
[1767262675184,0.04527041,87865.0,87851.0,0.0113829]
[1767262675391,0.04527041,87865.0,87852.0,0.01138278]
[1767262681558,0.04527041,87865.0,87853.0,0.01138265]
[1767262682252,0.04527041,87865.0,87852.0,0.01138278]
[1767262687371,0.04527041,87865.0,87851.0,0.0113829]
[1767262687578,0.04527041,87865.0,87852.0,0.01138278]
[1767262690824,0.04527041,87865.0,87851.0,0.0113829]
[1767262691001,0.04527041,87865.0,87852.0,0.01138278]
[1767262694353,0.04527041,87865.0,87851.0,0.0113829]
[1767262694532,0.04527041,87865.0,87852.0,0.01138278]
[1767262699105,0.04527041,87865.0,87851.0,0.0113829]
[1767262701280,0.04527041,87865.0,87852.0,0.01138278]
[1767262702647,0.04527041,87865.0,87851.0,0.0113829]
[1767262702848,0.04527041,87865.0,87852.0,0.01138278]
[1767262703010,0.04527041,87865.0,87851.0,0.0113829]
[1767262703551,0.04527041,87865.0,87852.0,0.01138278]
[1767262705361,0.04527041,87865.0,87851.0,0.0113829]
[1767262706398,0.04527041,87865.0,87852.0,0.01138278]
[1767262706778,0.04527041,87865.0,87851.0,0.0113829]
[1767262708481,0.04527041,87865.0,87852.0,0.01138278]
[1767262709263,0.04527041,87865.0,87851.0,0.0113829]
[1767262709815,0.04527041,87865.0,87852.0,0.01138278]
[1767262710214,0.04527041,87865.0,87851.0,0.0113829]
[1767262710654,0.04527041,87865.0,87852.0,0.01138278]
[1767262711698,0.04527041,87865.0,87851.0,0.0113829]
[1767262711901,0.04527041,87865.0,87852.0,0.01138278]
[1767262712306,0.04527041,87865.0,87851.0,0.0113829]
[1767262712509,0.04527041,87865.0,87852.0,0.01138278]
[1767262717388,0.04527041,87865.0,87851.0,0.0113829]
[1767262717594,0.04527041,87865.0,87852.0,0.01138278]
[1767262718065,0.04527041,87865.0,87851.0,0.0113829]
[1767262718418,0.04527041,87865.0,87852.0,0.01138278]
[1767262720703,0.04527041,87865.0,87853.0,0.01138265]
[1767262721107,0.04527041,87865.0,87852.0,0.01138278]
[1767262722249,0.04527041,87865.0,87853.0,0.01138265]
[1767262722567,0.04527041,87865.0,87852.0,0.01138278]
[1767262725273,0.04527041,87865.0,87853.0,0.03417309]
[1767262725438,0.04527041,87865.0,87853.0,0.04555574]
[1767262725635,0.04527041,87865.0,87853.0,0.03417309]
[1767262730522,0.04527041,87865.0,87853.0,0.04555574]
[1767262730885,0.04527041,87865.0,87853.0,0.03417309]
[1767262731675,0.04527041,87865.0,87853.0,0.04555574]
[1767262732907,0.04527041,87865.0,87853.0,0.03417309]
[1767262735816,0.04527041,87865.0,87853.0,0.04555574]
[1767262736832,0.04527041,87865.0,87853.0,0.03417309]
[1767262738107,0.04527041,87865.0,87853.0,0.04555574]
[1767262738311,0.04527041,87865.0,87853.0,0.03417309]
[1767262738512,0.04527041,87865.0,87852.0,0.01138278]
[1767262738764,0.04527041,87865.0,87853.0,0.03417309]
[1767262738944,0.04527041,87865.0,87853.0,0.04555574]
[1767262739913,0.04527041,87865.0,87853.0,0.01138265]
[1767262740086,0.04527041,87865.0,87854.0,0.03417309]
[1767262743403,0.04527041,87865.0,87854.0,0.04555561]
[1767262743607,0.04527041,87865.0,87854.0,0.03417309]
[1767262750075,0.04527041,87865.0,87854.0,0.04555561]
[1767262750327,0.04527041,87865.0,87854.0,0.03417309]
[1767262750527,0.04527041,87865.0,87855.0,0.01138239]
[1767262752256,0.04527041,87865.0,87854.0,0.04555561]
[1767262752670,0.04527041,87865.0,87855.0,0.01138239]
[1767262753607,0.04527041,87865.0,87856.0,0.01138226]
[1767262753807,0.04527041,87865.0,87855.0,0.01138239]
[1767262754693,0.04527041,87865.0,87854.0,0.04555561]
[1767262754875,0.04527041,87865.0,87855.0,0.01138239]
[1767262755081,0.04527041,87865.0,87854.0,0.04555561]
[1767262755281,0.04527041,87865.0,87855.0,0.01138239]
[1767262756661,0.04527041,87865.0,87854.0,0.04555561]
[1767262757308,0.04527041,87865.0,87855.0,0.01138239]
[1767262757481,0.04527041,87865.0,87854.0,0.04555561]
[1767262757686,0.04527041,87865.0,87855.0,0.01138239]
[1767262759312,0.04527041,87865.0,87854.0,0.04555561]
[1767262759722,0.04527041,87865.0,87855.0,0.01138239]
[1767262760264,0.0114,87864.0,87856.0,0.01138226]
[1767262761262,0.0114,87864.0,87855.0,0.01138239]
[1767262764440,0.04527041,87865.0,87855.0,0.01138239]
[1767262764441,0.0114,87863.0,87855.0,0.01138239]
[1767262765469,0.0114,87863.0,87856.0,0.01138226]
[1767262765668,0.0114,87863.0,87855.0,0.01138239]
[1767262766978,0.0114,87863.0,87856.0,0.01138226]
[1767262767305,0.0114,87863.0,87855.0,0.01138239]
[1767262767956,0.0114,87863.0,87856.0,0.01138226]
[1767262771650,0.0114,87863.0,87854.0,0.04555561]
[1767262772862,0.0114,87863.0,87854.0,0.03417309]
[1767262773557,0.0114,87863.0,87854.0,0.04555561]
[1767262775305,0.0114,87863.0,87854.0,0.03417309]
[1767262775502,0.0114,87863.0,87854.0,0.04555561]
[1767262776858,0.0114,87863.0,87854.0,0.03307409]
[1767262800124,0.0114,87863.0,87854.0,0.03219964]
[1767262830691,0.04743667,87862.0,87848.0,4.819e-05]
[1767262831401,0.00028565,87849.0,87848.0,4.819e-05]
[1767262843427,0.04772232,87849.0,87841.0,0.0004]
[1767262843716,0.0114,87848.0,87841.0,0.00050595]
[1767262844106,0.00455699,87847.0,87841.0,0.00050595]
[1767262845652,0.0114,87848.0,87841.0,0.00050595]
[1767262848883,0.00026116,87842.0,87841.0,0.00050595]
[1767262849083,1.6e-07,87842.0,87841.0,0.00050595]
[1767262857512,1.6e-07,87842.0,87841.0,0.00024495]
[1767262861283,1.6e-07,87842.0,87837.0,0.0001028]
[1767262861284,0.04968245,87842.0,87837.0,0.0001028]
[1767262861485,0.04968229,87840.0,87837.0,0.0001028]
[1767262861685,0.0114,87841.0,87837.0,0.0001028]
[1767262866535,0.0114,87841.0,87835.0,0.00064168]
[1767262866536,0.06108229,87841.0,87835.0,0.00064168]
[1767262866730,0.06108229,87841.0,87832.0,0.0004]
[1767262866912,0.04968229,87840.0,87832.0,0.0004]
[1767262870416,0.04968229,87838.0,87832.0,0.0004]
[1767262871067,0.04968229,87836.0,87832.0,0.0004]
[1767262871689,0.00455779,87835.0,87832.0,0.0004]
[1767262871890,0.0114,87834.0,87832.0,0.0004]
[1767262872244,0.0114,87834.0,87833.0,0.00026802]
[1767262874629,0.0114,87834.0,87832.0,0.0004]
[1767262875017,0.01595779,87834.0,87832.0,0.0004]
[1767262879827,0.0114,87834.0,87832.0,0.0004]
[1767262880114,0.05424017,87833.0,87828.0,0.0005479]
[1767262880520,0.04968229,87833.0,87828.0,0.0005479]
[1767262880700,0.06146869,87833.0,87828.0,0.0005479]
[1767262881509,0.06146869,87833.0,87825.0,0.0004]
[1767262881510,0.04911177,87829.0,87825.0,0.0004]
[1767262881673,0.0114,87834.0,87824.0,0.0004]
[1767262881870,0.0117864,87832.0,87824.0,0.0004]
[1767262883227,0.06089817,87832.0,87824.0,0.0004]
[1767262883618,0.04911177,87832.0,87824.0,0.0004]
[1767262883846,0.00455824,87831.0,87824.0,0.0004]
[1767262884164,0.04911177,87841.0,87824.0,0.0004]
[1767262884369,0.0114,87840.0,87831.0,0.00055]
[1767262884516,0.00455788,87833.0,87830.0,0.51440027]
[1767262884713,0.0114,87832.0,87828.0,0.04703178]
[1767262885403,0.0013782,87832.0,87828.0,0.05841767]
[1767262886378,0.0013782,87832.0,87829.0,0.04703178]
[1767262888698,0.00455788,87833.0,87829.0,0.04703178]
[1767262890818,0.00455788,87833.0,87829.0,0.05841754]
[1767262891017,0.00455788,87833.0,87829.0,0.04703178]
[1767262891834,0.00455788,87833.0,87829.0,0.05841754]
[1767262892756,0.00455788,87833.0,87829.0,0.04703178]
[1767262893840,0.00455788,87833.0,87828.0,0.01138589]
[1767262894593,0.00455788,87833.0,87829.0,0.01138576]
[1767262894932,0.00455788,87833.0,87828.0,0.01138589]
[1767262895131,0.00455788,87833.0,87829.0,0.01138576]
[1767262895564,0.0114,87834.0,87829.0,0.01138576]
[1767262895890,0.0114,87834.0,87830.0,0.01138563]
[1767262896032,0.0114,87834.0,87829.0,0.01138576]
[1767262897296,0.0114,87834.0,87830.0,0.01138563]
[1767262897689,0.0114,87834.0,87829.0,0.01138576]
[1767262902603,0.0114,87834.0,87828.0,0.01138589]
[1767262902809,0.0114,87834.0,87827.0,0.01138602]
[1767262902998,0.0114,87834.0,87828.0,0.01138589]
[1767262903184,0.0114,87834.0,87827.0,0.01138602]
[1767262903860,0.0114,87834.0,87828.0,0.01138589]
[1767262904069,0.0114,87834.0,87827.0,0.01138602]
[1767262904529,0.0114,87834.0,87828.0,0.01138589]
[1767262904712,0.0114,87834.0,87829.0,0.01138576]
[1767262904913,0.0114,87834.0,87828.0,0.01138589]
[1767262908815,0.0114,87834.0,87827.0,0.01138602]
[1767262909602,0.0114,87834.0,87828.0,0.01138589]
[1767262910085,0.0114,87834.0,87827.0,0.01138602]
[1767262912766,0.0114,87834.0,87828.0,0.01138589]
[1767262913012,0.0114,87834.0,87827.0,0.01138602]
[1767262913457,0.0114,87834.0,87828.0,0.01138589]
[1767262914138,0.0114,87834.0,87827.0,0.01138602]
[1767262914346,0.0114,87834.0,87829.0,0.01138576]
[1767262914527,0.0114,87834.0,87827.0,0.01138602]
[1767262914936,0.0114,87834.0,87828.0,0.01138589]
[1767262916550,0.0114,87834.0,87829.0,0.01138576]
[1767262916993,0.0114,87834.0,87828.0,0.01138589]
[1767262919008,0.0114,87834.0,87829.0,0.01138576]
[1767262919166,0.0114,87834.0,87828.0,0.01138589]
[1767262919372,0.0114,87834.0,87829.0,0.01138576]
[1767262919613,0.0114,87834.0,87828.0,0.01138589]
[1767262920238,0.0114,87834.0,87829.0,0.01138576]
[1767262920970,0.0114,87834.0,87828.0,0.01138589]
[1767262921162,0.0114,87834.0,87829.0,0.01138576]
[1767262921663,0.0114,87833.0,87831.0,0.0113855]
[1767262923077,0.0114,87833.0,87824.0,0.74252775]
[1767262923078,0.000562,87842.0,87836.0,0.01138485]
[1767262923300,0.0114,87841.0,87839.0,0.01138446]
[1767262923715,0.0114,87841.0,87838.0,0.01138459]
[1767262930387,0.000562,87842.0,87839.0,0.01138446]
[1767262930585,0.000562,87842.0,87841.0,0.000549]
[1767262930830,1.6e-07,87842.0,87841.0,0.000549]
[1767262931036,1.6e-07,87842.0,87839.0,0.05949538]
[1767262932338,1.6e-07,87842.0,87839.0,0.11641721]
[1767262934675,1.6e-07,87842.0,87839.0,0.06830629]
[1767262936684,1.6e-07,87842.0,87839.0,0.01138446]
[1767262936883,1.6e-07,87842.0,87838.0,0.01138459]
[1767262937380,1.6e-07,87842.0,87838.0,0.01132766]
[1767262937881,1.6e-07,87842.0,87839.0,0.01138446]
[1767262940415,1.6e-07,87842.0,87838.0,0.01132766]
[1767262940798,1.6e-07,87842.0,87839.0,0.01138446]
[1767262949388,1.6e-07,87842.0,87838.0,0.01132766]
[1767262950443,0.0459554,87842.0,87833.0,0.01138524]
[1767262950665,0.0459554,87842.0,87834.0,0.01138511]
[1767262951723,0.0459554,87842.0,87835.0,0.01138498]
[1767262951889,0.0459554,87842.0,87834.0,0.01138511]
[1767262953556,0.0459554,87842.0,87835.0,0.01138498]
[1767262953831,0.0459554,87842.0,87834.0,0.01138511]
[1767262954134,0.0459554,87842.0,87835.0,0.01138498]
[1767262954309,0.0459554,87842.0,87834.0,0.01138511]
[1767262954634,0.0459554,87842.0,87835.0,0.01138498]
[1767262954808,0.0459554,87842.0,87834.0,0.01138511]
[1767262956043,0.0459554,87842.0,87835.0,0.01138498]
[1767262957043,0.0459554,87842.0,87836.0,0.01138485]
[1767262957960,1.6e-07,87842.0,87836.0,0.01138485]
[1767262959094,1.6e-07,87842.0,87837.0,0.01138472]
[1767262959746,1.6e-07,87842.0,87836.0,0.01138485]
[1767262960109,1.6e-07,87842.0,87835.0,0.01138498]
[1767262960309,1.6e-07,87842.0,87836.0,0.01138485]
[1767262961759,1.6e-07,87842.0,87834.0,0.01138511]
[1767262962842,1.6e-07,87842.0,87835.0,0.01138498]
[1767262964601,1.6e-07,87842.0,87834.0,0.01138511]
[1767262964799,1.6e-07,87842.0,87835.0,0.01138498]
[1767262965184,1.6e-07,87842.0,87834.0,0.01138511]
[1767262965988,1.6e-07,87842.0,87835.0,0.01138498]
[1767262966814,1.6e-07,87842.0,87834.0,0.01138511]
[1767262967015,1.6e-07,87842.0,87835.0,0.01138498]
[1767262968115,1.6e-07,87842.0,87834.0,0.01138511]
[1767262968318,1.6e-07,87842.0,87833.0,0.01132831]
[1767262968498,1.6e-07,87842.0,87832.0,0.5369506]
[1767262968702,1.6e-07,87842.0,87832.0,0.52556523]
[1767262968944,1.6e-07,87842.0,87832.0,0.5369506]
[1767262970122,1.6e-07,87842.0,87833.0,0.01138524]
[1767262971315,1.6e-07,87842.0,87832.0,0.5255506]
[1767262972245,1.6e-07,87842.0,87833.0,0.01138524]
[1767262973764,1.6e-07,87842.0,87834.0,0.01138511]
[1767262973974,1.6e-07,87842.0,87833.0,0.01138524]
[1767262974577,1.6e-07,87842.0,87832.0,0.5255506]
[1767262975891,1.6e-07,87842.0,87833.0,0.01138524]
[1767262980582,1.6e-07,87842.0,87836.0,0.01138485]
[1767262981983,1.6e-07,87842.0,87837.0,0.01138472]
[1767262982766,1.6e-07,87842.0,87836.0,0.01138485]
[1767262982981,1.6e-07,87842.0,87838.0,0.01138459]
[1767262983196,1.6e-07,87842.0,87837.0,0.01138472]
[1767262983969,1.6e-07,87842.0,87838.0,0.01138459]
[1767262984318,1.6e-07,87842.0,87839.0,0.01138446]
[1767262984683,1.6e-07,87842.0,87838.0,0.01138459]
[1767262986809,1.6e-07,87842.0,87837.0,0.01138472]
[1767262987230,1.6e-07,87842.0,87838.0,0.01138459]
[1767262987431,1.6e-07,87842.0,87837.0,0.01138472]
[1767262987964,1.6e-07,87842.0,87838.0,0.01138459]
[1767262988489,1.6e-07,87842.0,87837.0,0.01138472]
[1767262988692,1.6e-07,87842.0,87838.0,0.01138459]
[1767262989324,1.6e-07,87842.0,87837.0,0.01138472]
[1767262990083,1.6e-07,87842.0,87838.0,0.01138459]
[1767262991680,1.6e-07,87842.0,87837.0,0.01138472]
[1767262992470,1.6e-07,87842.0,87838.0,0.01138459]
[1767262992986,1.6e-07,87842.0,87837.0,0.01138472]
[1767262993967,1.6e-07,87842.0,87836.0,0.01138485]
[1767262994776,1.6e-07,87842.0,87837.0,0.01138472]
[1767262994977,1.6e-07,87842.0,87836.0,0.01138485]
[1767262995180,1.6e-07,87842.0,87837.0,0.01138472]
[1767262995389,1.6e-07,87842.0,87836.0,0.01138485]
[1767262996223,1.6e-07,87842.0,87835.0,0.05754164]
[1767262996938,1.6e-07,87842.0,87836.0,0.01138485]
[1767262997563,1.6e-07,87842.0,87835.0,0.05754164]
[1767262998646,1.6e-07,87842.0,87836.0,0.01138485]
[1767263001940,1.6e-07,87842.0,87835.0,0.05754164]
[1767263002115,1.6e-07,87842.0,87837.0,0.01138472]
[1767263003462,1.6e-07,87842.0,87835.0,0.11446606]
[1767263003673,1.6e-07,87842.0,87836.0,0.01138485]
[1767263003949,1.6e-07,87842.0,87837.0,0.01138472]
[1767263004164,1.6e-07,87842.0,87836.0,0.01138485]
[1767263007722,1.6e-07,87842.0,87837.0,0.01138472]
[1767263008346,1.6e-07,87842.0,87836.0,0.01138485]
[1767263008848,1.6e-07,87842.0,87837.0,0.01138472]
[1767263009376,1.6e-07,87842.0,87836.0,0.01138485]
[1767263010321,1.6e-07,87842.0,87835.0,0.01138498]
[1767263012121,1.6e-07,87842.0,87836.0,0.01138485]
[1767263012271,1.6e-07,87842.0,87835.0,0.01138498]
[1767263012473,1.6e-07,87842.0,87834.0,0.01138511]
[1767263013513,1.6e-07,87842.0,87833.0,0.01138524]
[1767263013825,1.6e-07,87842.0,87834.0,0.01138511]
[1767263014121,1.6e-07,87842.0,87835.0,0.01138498]
[1767263015150,1.6e-07,87842.0,87836.0,0.01138485]
[1767263015351,1.6e-07,87842.0,87835.0,0.01138498]
[1767263016298,1.6e-07,87842.0,87836.0,0.01138485]
[1767263017277,1.6e-07,87842.0,87834.0,0.01138511]
[1767263017457,1.6e-07,87842.0,87835.0,0.01138498]
[1767263017611,1.6e-07,87842.0,87835.0,0.01132805]
[1767263018355,1.6e-07,87842.0,87836.0,0.01138485]
[1767263019188,1.6e-07,87842.0,87837.0,0.01138472]
[1767263019904,1.6e-07,87842.0,87836.0,0.01138485]
[1767263021683,0.00055,87836.0,87832.0,0.52556012]
[1767263021850,0.00055,87836.0,87832.0,0.01138537]
[1767263022196,1.6e-07,87842.0,87832.0,0.01138537]
[1767263022400,1.6e-07,87842.0,87833.0,0.01138524]
[1767263022543,1.6e-07,87842.0,87834.0,0.01138511]
[1767263022976,1.6e-07,87842.0,87833.0,0.01138524]
[1767263023274,1.6e-07,87842.0,87834.0,0.01138511]
[1767263023475,1.6e-07,87842.0,87833.0,0.01138524]
[1767263024497,1.6e-07,87842.0,87832.0,0.52556012]
[1767263025698,1.6e-07,87842.0,87833.0,0.01138524]
[1767263025889,1.6e-07,87842.0,87832.0,0.52556012]
[1767263026091,1.6e-07,87842.0,87832.0,0.51417475]
[1767263032258,1.6e-07,87842.0,87829.0,0.0683283]
[1767263032259,1.6e-07,87842.0,87829.0,0.02278576]
[1767263032464,1.6e-07,87842.0,87832.0,0.51417475]
[1767263047004,1.6e-07,87842.0,87830.0,0.01138563]
[1767263047220,1.6e-07,87842.0,87832.0,0.51417475]
[1767263049638,1.6e-07,87842.0,87832.0,0.52556012]
[1767263049793,1.6e-07,87842.0,87834.0,0.01138511]
[1767263049996,1.6e-07,87842.0,87832.0,0.52556012]
[1767263050201,1.6e-07,87842.0,87833.0,0.01138524]
[1767263053711,1.6e-07,87842.0,87834.0,0.01138511]
[1767263053910,1.6e-07,87842.0,87833.0,0.01138524]
[1767263056015,1.6e-07,87842.0,87832.0,0.52556012]
[1767263056450,1.6e-07,87842.0,87833.0,0.01138524]
[1767263057002,1.6e-07,87842.0,87832.0,0.52556012]
[1767263057210,1.6e-07,87842.0,87833.0,0.01138524]
[1767263058243,1.6e-07,87842.0,87832.0,0.52556012]
[1767263058443,1.6e-07,87842.0,87833.0,0.01138524]
[1767263058641,1.6e-07,87842.0,87832.0,0.01138537]
[1767263058842,1.6e-07,87842.0,87832.0,0.52556012]
[1767263059447,1.6e-07,87842.0,87833.0,0.01138524]
[1767263062190,1.6e-07,87842.0,87834.0,0.01138511]
[1767263062337,1.6e-07,87842.0,87835.0,0.01138498]
[1767263062541,1.6e-07,87842.0,87834.0,0.01138511]
[1767263062981,1.6e-07,87842.0,87835.0,0.01138498]
[1767263063290,1.6e-07,87842.0,87834.0,0.01138511]
[1767263064074,1.6e-07,87842.0,87835.0,0.01138498]
[1767263064701,1.6e-07,87842.0,87834.0,0.01138511]
[1767263065129,1.6e-07,87842.0,87835.0,0.01138498]
[1767263065428,1.6e-07,87842.0,87834.0,0.01138511]
[1767263065565,1.6e-07,87842.0,87835.0,0.01138498]
[1767263065907,1.6e-07,87842.0,87834.0,0.01138511]
[1767263070157,1.6e-07,87842.0,87835.0,0.01138498]
[1767263071507,1.6e-07,87842.0,87836.0,0.01138485]
[1767263071683,1.6e-07,87842.0,87835.0,0.01138498]
[1767263072718,1.6e-07,87842.0,87832.0,0.51419738]
[1767263073101,0.00055,87835.0,87832.0,0.51419738]
[1767263073272,0.00055,87835.0,87831.0,0.0113855]
[1767263073497,1.6e-07,87842.0,87831.0,0.0113855]
[1767263073876,1.6e-07,87842.0,87830.0,0.01138563]
[1767263074280,1.6e-07,87842.0,87830.0,0.52558301]
[1767263074888,1.6e-07,87842.0,87831.0,0.0113855]
[1767263075070,0.18191499,87845.0,87831.0,0.0113855]
[1767263076103,0.18191499,87845.0,87832.0,0.01138537]
[1767263077437,0.18191499,87845.0,87831.0,0.0113855]
[1767263077798,0.04553353,87844.0,87831.0,0.0113855]
[1767263083414,0.04553353,87844.0,87832.0,0.01138537]
[1767263083763,0.04553353,87844.0,87831.0,0.0113855]
[1767263086369,0.04553353,87844.0,87832.0,0.01138537]
[1767263087033,0.04553353,87844.0,87831.0,0.0113855]
[1767263087252,0.13638146,87845.0,87831.0,0.0113855]
[1767263089439,0.13638146,87845.0,87832.0,0.01138537]
[1767263090704,0.13638146,87845.0,87831.0,0.0113855]
[1767263093701,0.13638146,87845.0,87832.0,0.01138537]
[1767263093902,0.13638146,87845.0,87831.0,0.0113855]
[1767263094085,0.13638146,87845.0,87832.0,0.01138537]
[1767263094984,0.13638146,87845.0,87831.0,0.0113855]
[1767263095167,0.13638146,87845.0,87831.0,0.01149133]
[1767263095496,0.13638146,87845.0,87832.0,0.01138537]
[1767263099466,0.13638146,87845.0,87831.0,0.01149133]
[1767263099741,0.13638146,87845.0,87832.0,0.01138537]
[1767263100285,0.13638146,87845.0,87831.0,0.01149133]
[1767263101811,0.13638146,87845.0,87831.0,0.00010583]
[1767263102050,0.13638146,87845.0,87831.0,0.01149133]
[1767263102749,0.13638146,87845.0,87831.0,0.00010583]
[1767263103047,0.13638146,87845.0,87831.0,0.01149133]
[1767263103265,0.13638146,87845.0,87831.0,0.00010583]